Cogmind - Beta 14 @@@ ROGUE MODE // 2024.08.07 @ 11:54:32 Player: Dumalacath Result: Destroyed by Y-54 Guardian with Gatling Laser Performance ------------- Evolutions (3) 1500 Regions Visited (7) 1400 Robots Destroyed (136) 680 Value Destroyed (4796) 4796 Prototype IDs (15) 300 Alien Tech Used (0) 0 Bonus (336) 336 TOTAL SCORE: 9012 Bonus ------- High Alert Combat Kills 336 Cogmind --------- Core Integrity 0/700 Matter 295/300 Energy 140/150 System Corruption 47% Temperature Cool (12) Movement Walking (140) Location -7/Storage Parts ------- > --- POWER (1) -------- Micro Nuclear Core > --- PROPULSION (4) --- Light Armored Exoskeleton Light Armored Exoskeleton > --- UTILITY (5) ------ High-capacity Storage Unit Improved Sensor Array Core Shielding Improved Light Armor Plating Hacking Suite > --- WEAPON (3) ------- Scythe Greatsword > --- INVENTORY (20) --- Reinforced Deuterium Engine Micro Nuclear Core Carbon-fiber Leg Carbon-fiber Leg Carbon-fiber Leg Titanium Leg Improved Titanium Leg Light Armored Exoskeleton Active Sensor Suite Target Analyzer Hacking Suite Power Maul Great Axe Peak State ------------ > --- POWER ------------ Improved Deuterium Engine > --- PROPULSION ------- Light Armored Exoskeleton Light Armored Exoskeleton > --- UTILITY ---------- Large Storage Unit Advanced Visual Processing Unit Advanced Targeting Computer Hardened Light Armor Plating Improved Light Armor Plating > --- WEAPON ----------- Precision Assault Rifle Advanced Assault Cannon Precision Grenade Launcher > --- INVENTORY -------- Deuterium Engine Light Armored Exoskeleton Light Armored Exoskeleton Light Armored Exoskeleton Improved Sensor Array Active Sensor Suite Gauss Rifle Flak Gun Flak Gun Heavy Missile Launcher [Rating: 53] Favorites ----------- Power Ion Engine Engine Ion Engine Power Core Light Nuclear Core Propulsion Aluminum Leg Treads Armored Treads Leg Aluminum Leg Wheel Wheel Utility Large Storage Unit Device Improved Heat Sink Storage Large Storage Unit Processor Advanced Visual Processing Unit Hackware Hacking Suite Protection Hardened Light Armor Plating Weapon Heavy Assault Rifle Energy Gun Small Laser Energy Cannon Powered Cannon Ballistic Gun Heavy Assault Rifle Ballistic Cannon Heavy Assault Cannon Launcher Heavy Missile Launcher Slashing Weapon Scythe Build | -11 -10 -10 -8 -7 -7 -7 -7 ------- Run | Yrd Mat Sub Mat Fac Was Fac Sto Slots Evolved 6 | . . . 4 2 . . . Power . | . . . . . . . . Propulsion 2 | . . . 2 . . . . Utility 3 | . . . 2 1 . . . Weapon 1 | . . . . 1 . . . Parts Attached 122 | 8 8 5 41 22 1 30 7 Power 19 | 1 1 . 4 4 1 7 1 Engine 12 | 1 1 . 3 3 1 3 . Core 7 | . . . 1 1 . 4 1 Reactor . | . . . . . . . . Propulsion 38 | 2 3 . 21 5 . 4 3 Treads 1 | . . . 1 . . . . Leg 36 | 2 3 . 19 5 . 4 3 Wheel 1 | . . . 1 . . . . Hover . | . . . . . . . . Flight . | . . . . . . . . Utility 31 | 2 2 1 9 5 . 9 3 Device 7 | 1 . . 3 1 . 1 1 Storage 3 | 1 . . 1 . . 1 . Processor 5 | . . . 3 1 . 1 . Hackware 1 | . . . . . . 1 . Protection 15 | . 2 1 2 3 . 5 2 Artifact . | . . . . . . . . Weapon 34 | 3 2 4 7 8 . 10 . Energy Gun 4 | 2 . . 1 . . 1 . Energy Cannon 2 | . . 1 1 . . . . Ballistic Gun 17 | 1 2 2 3 6 . 3 . Ballistic Cannon 2 | . . . 1 1 . . . Launcher 2 | . . . . 1 . 1 . Special Weapon . | . . . . . . . . Impact Weapon . | . . . . . . . . Slashing Weapon 7 | . . 1 1 . . 5 . Piercing Weapon . | . . . . . . . . Special Melee Weapon . | . . . . . . . . Unidentified Prototypes 4 | . . . . 3 . 1 . Parts Lost 41 | . 1 . 19 . 3 14 4 Power 9 | . 1 . 3 . 1 3 1 Propulsion 10 | . . . 8 . . 1 1 Utility 13 | . . . 4 . 2 5 2 Weapon 9 | . . . 4 . . 5 . Highest Loss Streak 11 | . 1 . 11 . 3 6 3 To Critical Strikes 1 | . . . . . . . 1 Average Slot Usage (%) 80 | . 96 85 66 81 73 77 76 Engine 7 | . 14 14 7 5 7 1 . Core 2 | . . . . 1 . 4 6 Leg 21 | . 28 28 25 19 15 14 15 Storage 5 | . 14 . 3 7 7 7 7 Processor 7 | . . . 10 15 15 5 . Hackware 1 | . . . . . . 4 7 Protection 13 | . 11 14 4 13 8 15 22 Energy Cannon 1 | . . 4 5 . . . . Ballistic Gun 9 | . 21 21 . 9 11 3 . Ballistic Cannon 2 | . . . 1 7 7 1 . Slashing Weapon 4 | . . 2 . . . 14 15 Peak Build Rating 53 | 9 10 14 32 53 52 50 50 Average Rating 32 | 5 8 11 25 45 47 44 48 On Entrance 25 | . 6 9 14 31 52 41 48 Naked Turns . | . . . . . . . . Heaviest Build 63 | 13 19 34 47 56 52 63 63 Greatest Support 66 | 20 20 20 56 66 60 60 62 Greatest Overweight (x) 8 | 1 . 1 8 1 . 2 1 Average Overweight (x) . | . . . . . . . . Largest Inventory Capacity 20 | 8 8 8 15 15 15 20 20 Average Capacity 12 | 7 8 5 9 15 15 18 20 Most Carried 20 | 6 8 7 8 15 15 20 20 Average Carried 11 | 4 7 4 5 13 14 16 18 Final Capacity 20 | 8 8 5 15 15 15 20 20 Final Carried 20 | 6 7 5 8 15 14 20 16 Class Distribution -------------------- 57% | Mutant 13% | Tank 10% | Scavenger-Mutant 8% | Scavenger-Tank 4% | Gunner Dominant Class ---------------- Mutant | -10/Materials Mutant | -10/Subcaves Scavenger-Mutant | -8/Materials Tank | -7/Factory Mutant | -7/Waste Mutant | -7/Factory Mutant | -7/Storage Resources | -11 -10 -10 -8 -7 -7 -7 -7 ----------- Run | Yrd Mat Sub Mat Fac Was Fac Sto Matter Collected 3674 | 219 254 174 547 1185 . 1222 73 Remotely . | . . . . . . . . Salvage Created 4945 | 156 291 189 1407 1027 . 1504 371 Parts 288 | 16 23 12 82 52 . 83 20 Haulers Intercepted 5 | . 1 . . 2 . 2 . Recyclers Shooed 2 | . . . 1 1 . . . Parts Field Recycled . | . . . . . . . . Retrieved Matter . | . . . . . . . . Parts Self-Destructed 10 | . . 10 . . . . . Prevented . | . . . . . . . . Kills | -11 -10 -10 -8 -7 -7 -7 -7 ------- Run | Yrd Mat Sub Mat Fac Was Fac Sto Combat Hostiles Destroyed 109 | . 7 7 36 26 . 27 6 Melee 19 | . . . 3 . . 10 6 Guns 33 | . 7 5 1 12 . 8 . Cannons 50 | . . 2 28 14 . 6 . AOE 3 | . . . . . . 3 . Classes Destroyed 17 | 3 5 1 4 3 . 1 . Worker 3 | 1 . . . . . 1 1 Builder 2 | . . . . 1 . 1 . Tunneler 5 | 4 . . . . . 1 . Hauler 5 | . 1 . . 2 . 2 . Recycler 7 | 1 . . . 1 . 4 1 Operator 2 | . 1 . . 1 . . . Watcher 3 | . 1 . . 1 . 1 . Swarmer 26 | . 3 4 11 5 . . 3 Grunt 48 | . 4 . 16 12 . 16 . Brawler 2 | . . . . . . 2 . Duelist 3 | . . . 1 . . 2 . Sentry 9 | . . . 5 3 . . 1 Specialist 2 | . . . 2 . . . . Hunter 5 | . . . . 2 . 2 1 Programmer 10 | . . . . 4 . 5 1 Heavy 1 | . . . 1 . . . . Subdweller 3 | . . 3 . . . . . Best Kill Streak 8 | 4 3 2 8 3 . 5 3 Combat Bots Only 8 | . 3 2 8 3 . 4 3 Max Kills in Single Turn 4 | 1 1 1 1 1 . 4 1 Gunslinging . | . . . . . . . . Exploded 2 | . . . . . . 2 . Melee 1 | . . . 1 . . 1 1 Uniques/NPCs Destroyed . | . . . . . . . . Combat | -11 -10 -10 -8 -7 -7 -7 -7 -------- Run | Yrd Mat Sub Mat Fac Was Fac Sto Hostile Shots Fired 827 | . 27 26 241 136 6 243 148 Missed 253 | . 5 7 63 45 1 81 51 Damage Taken 8952 | . 273 307 2818 1221 198 2929 1206 Core 1233 | . 46 28 455 107 79 411 107 Absorbed by Shields . | . . . . . . . . Redirected to Shielding 146 | . 15 . . . . 38 93 Ignored by Resistances 10 | . . . . . . . 10 Regen/Repaired (Parts) 518 | . . . . 120 . 398 . Core Remaining (%) 62 | 100 . 70 17 . . . . Volleys Fired 296 | 14 24 32 96 77 . 53 . Largest 3 | 2 2 2 2 3 . 3 . Hottest 104 | 60 60 103 79 104 . 104 . Shots Fired 515 | 28 48 52 107 175 . 105 . Gun 315 | 28 48 38 27 98 . 76 . Cannon 199 | . . 14 80 77 . 28 . Launcher 1 | . . . . . . 1 . Special . | . . . . . . . . Kinetic 392 | 14 27 38 34 175 . 104 . Thermal 122 | 14 21 14 73 . . . . Explosive 1 | . . . . . . 1 . Electromagnetic . | . . . . . . . . Robot Hit Streak 14 | 5 11 5 14 14 . 9 . Robot Miss Streak 7 | 2 2 4 6 7 . 7 . Penetration Max . | . . . . . . . . Secondary Targets . | . . . . . . . . Shots Hit Robots 431 | 15 33 18 83 132 . 127 23 Core Hits 255 | 7 14 10 32 99 . 86 7 Critical Kills 4 | . . . 4 . . . . Critical Parts Destroyed 1 | . . . 1 . . . . Critical Strikes 24 | . . 1 8 6 . 7 2 Burn 1 | . . . 1 . . . . Meltdown 4 | . . . 4 . . . . Destroy 2 | . . 1 1 . . . . Blast 10 | . . . 2 6 . 2 . Sever 7 | . . . . . . 5 2 Melee Attacks 129 | . . 1 11 . . 67 50 Impact . | . . . . . . . . Slashing 129 | . . 1 11 . . 67 50 Piercing . | . . . . . . . . Sneak Attacks 10 | . . . . . . 8 2 Combat Hostiles . | . . . . . . . . Follow-up Attacks 19 | . . . . . . 9 10 Damage Inflicted 13237 | 174 393 328 3375 3494 . 4295 1178 Guns 3840 | 174 393 244 357 1521 . 1151 . Cannons 5487 | . . 84 2809 1964 . 630 . Explosions 564 | . . . . . . 564 . Melee 3331 | . . . 203 . . 1950 1178 Ramming 15 | . . . 6 9 . . . Kinetic 6579 | 73 229 244 767 3485 . 1781 . Thermal 3093 | 101 164 84 2399 . . 345 . Explosive 219 | . . . . . . 219 . Electromagnetic . | . . . . . . . . Impact . | . . . . . . . . Slashing 3331 | . . . 203 . . 1950 1178 Piercing . | . . . . . . . . Highest Corruption 47 | . . . . 2 17 46 47 Average Corruption 30 | . . . . 1 10 34 46 Corruption Purged . | . . . . . . . . Corruption Blocked . | . . . . . . . . Effects 167 | . . . . 10 7 129 21 Message Errors 32 | . . . . 2 . 24 6 Matter Fused 48 | . . . . 5 2 37 4 Heat Flow Errors 19 | . . . . 1 1 17 . Energy Discharges 19 | . . . . 1 1 13 4 Parts Rejected 3 | . . . . . . 2 1 Parts Fused 4 | . . . . . 1 3 . Data Loss (minor) 22 | . . . . 1 . 17 4 Data Loss (major) 4 | . . . . . . 3 1 Misfires 1 | . . . . . . 1 . Alerts 2 | . . . . . . 2 . Misdirections 13 | . . . . . 2 10 1 Overload Shots . | . . . . . . . . Overflow Damage 853 | . . . 203 155 . 383 112 Projectiles 364 | . . . 203 155 . 6 . Explosions 114 | . . . . . . 114 . Melee 375 | . . . . . . 263 112 Knockbacks 25 | . . . 4 13 . 8 . Impact . | . . . . . . . . Kinetic 23 | . . . 3 13 . 7 . Secondary 2 | . . . 1 . . 1 . Self-Inflicted Damage 84 | . . . . . . 84 . Shots 2 | . . . . . . 2 . Rammed . | . . . . . . . . Targets Rammed 6 | . . . 3 3 . . . Kicked 6 | . . . 3 3 . . . Crushed . | . . . . . . . . Highest Temperature 285 | . 69 . 232 285 199 261 . Average Temperature 72 | . 31 . 46 72 105 90 . Received Heat Transfer 2220 | . 105 36 720 276 . 1008 75 Effects 2 | . . . 2 . . . . Interference 2 | . . . 2 . . . . Siege Activations . | . . . . . . . . Robots Corrupted . | . . . . . . . . Combat Hostiles . | . . . . . . . . Parts Fried . | . . . . . . . . Impact Corruptions . | . . . . . . . . Robots Melted 4 | . . . 4 . . . . Combat Hostiles 4 | . . . 4 . . . . Parts Melted 10 | . . 1 9 . . . . Heat Transferred 1170 | 225 375 111 259 . . 200 . Parts Sabotaged . | . . . . . . . . Parts Stolen . | . . . . . . . . Parts Stripped . | . . . . . . . . Power Chain Reactions . | . . . . . . . . Alert | -11 -10 -10 -8 -7 -7 -7 -7 ------- Run | Yrd Mat Sub Mat Fac Was Fac Sto Peak Influence 627 | 30 246 . 522 627 234 524 417 Initial 232 | . 19 . . 232 219 142 171 Average 278 | 12 77 . 284 289 218 357 262 Maximum Alert Level 2 | . 1 . 2 2 1 2 2 Low Security (%) 28 | 100 81 . 39 23 . 2 38 Level 1 53 | . 18 . 22 55 100 80 60 Level 2 18 | . . . 37 20 . 17 . Level 3 . | . . . . . . . . Level 4 . | . . . . . . . . Level 5 . | . . . . . . . . High Security . | . . . . . . . . Max Security . | . . . . . . . . Squads Dispatched 30 | . 1 . 7 6 . 13 3 Investigation 4 | . 1 . 1 . . 2 . Extermination 9 | . . . . 3 . 5 1 Reinforcement 13 | . . . 6 2 . 3 2 Assault . | . . . . . . . . Garrison 4 | . . . . 1 . 3 . Intercept . | . . . . . . . . Searches Triggered . | . . . . . . . . Construction Impeded 1 | . . . . . . 1 . Haulers Reinforced 1 | . . . . 1 . . . Active Scanning Responses . | . . . . . . . . Cargo Convoy Interrupts . | . . . . . . . . Stealth | -11 -10 -10 -8 -7 -7 -7 -7 --------- Run | Yrd Mat Sub Mat Fac Was Fac Sto Distress Signals 6 | . 1 . 2 . . 3 . Communications Jammed . | . . . . . . . . Distress Signals . | . . . . . . . . Times Spotted 184 | . 12 15 56 40 6 42 13 Peak Tracking Total 7 | . 5 3 7 4 6 6 4 Tactical Retreats 13 | . . 1 6 3 . 1 2 Traps | -11 -10 -10 -8 -7 -7 -7 -7 ------- Run | Yrd Mat Sub Mat Fac Was Fac Sto Traps Triggered 8 | . 2 . 2 1 . 3 . Indirectly . | . . . . . . . . Trap Hack Attempts . | . . . . . . . . Triggered . | . . . . . . . . Disarmed . | . . . . . . . . Reprogrammed . | . . . . . . . . Reused . | . . . . . . . . Traps Extracted . | . . . . . . . . Installed . | . . . . . . . . Triggered . | . . . . . . . . Machines | -11 -10 -10 -8 -7 -7 -7 -7 ---------- Run | Yrd Mat Sub Mat Fac Was Fac Sto Machines Disabled 11 | . . 1 3 4 . 3 . Max in Single Turn 3 | . . 1 1 1 . 3 . Garrison Access 2 | . . . . 1 . . 1 Machines Repaired . | . . . . . . . . Machines Dismantled . | . . . . . . . . Machines Sabotaged . | . . . . . . . . Overloaded Fab Kills . | . . . . . . . . Hacking | -11 -10 -10 -8 -7 -7 -7 -7 --------- Run | Yrd Mat Sub Mat Fac Was Fac Sto Machines Accessed 28 | . 4 1 3 6 . 10 4 Terminals 21 | . 4 . 3 4 . 7 3 Fabricators . | . . . . . . . . Repair Stations 2 | . . . . 1 . 1 . Recycling Units 1 | . . . . . . 1 . Scanalyzers . | . . . . . . . . Garrison Access 3 | . . . . 1 . 1 1 Total Hacks 69 | . 13 9 6 14 . 21 6 Successful 31 | . 5 9 1 8 . 5 3 Failed 37 | . 7 . 5 6 . 16 3 Catastrophic 11 | . 1 . 1 2 . 6 1 Database Lockouts 1 | . 1 . . . . . . Manual 38 | . 9 . 6 8 . 14 1 Terminals 47 | . 13 . 6 9 . 15 4 Fabricators . | . . . . . . . . Repair Stations 4 | . . . . 2 . 2 . Recycling Units 1 | . . . . . . 1 . Scanalyzers . | . . . . . . . . Garrison Access 8 | . . . . 3 . 3 2 Terminal Hacks 18 | . 3 9 . 3 . 1 2 Record 8 | . . 8 . . . . . Robot Analysis 2 | . 1 . . 1 . . . Open Door 2 | . . . . . . . 2 Branch Access Points 1 | . . . . . . 1 . Alert Level 1 | . . . . 1 . . . Unreport Threat 1 | . 1 . . . . . . Locate Traps 1 | . . . . 1 . . . Zone Layout 1 | . 1 . . . . . . Derelict Proto ID Bank 1 | . . 1 . . . . . Fabricator Hacks . | . . . . . . . . Repair Station Hacks 4 | . . . . 2 . 2 . Scan Component 2 | . . . . 1 . 1 . Repair 2 | . . . . 1 . 1 . Recycling Unit Hacks . | . . . . . . . . Scanalyzer . | . . . . . . . . Garrison Access Hacks 2 | . . . . 1 . . 1 Seal Access 2 | . . . . 1 . . 1 Unauthorized Hacks 7 | . 2 . 1 2 . 2 . Terminals 6 | . 2 . 1 2 . 1 . Botnet 6 | . 2 . 1 2 . 1 . Fabricators . | . . . . . . . . Repair Stations . | . . . . . . . . Recycling Units 1 | . . . . . . 1 . Tunnel 1 | . . . . . . 1 . Scanalyzers . | . . . . . . . . Garrison Access . | . . . . . . . . Data Cores Recovered 2 | . 1 . . 1 . . . Used 1 | . 1 . . . . . . Hacking Detections 20 | . 4 . 3 5 . 7 1 Full Trace Events 1 | . . . . . . 1 . Feedback Events . | . . . . . . . . Feedback Blocked . | . . . . . . . . Robot Schematics Acquired . | . . . . . . . . Robots Built . | . . . . . . . . Authchips . | . . . . . . . . Time . | . . . . . . . . Total Robot Build Rating . | . . . . . . . . Part Schematics Acquired . | . . . . . . . . Parts Built . | . . . . . . . . Authchips . | . . . . . . . . Time . | . . . . . . . . Total Part Build Rating . | . . . . . . . . Parts Repaired 2 | . . . . 1 . 1 . Time 63 | . . . . 19 . 44 . Parts Recycled . | . . . . . . . . Recycled Matter . | . . . . . . . . Retrieved Matter . | . . . . . . . . Retrieved Components . | . . . . . . . . Parts Scanalyzed . | . . . . . . . . Part Schematics Acquired . | . . . . . . . . Parts Damaged . | . . . . . . . . Bothacking | -11 -10 -10 -8 -7 -7 -7 -7 ------------ Run | Yrd Mat Sub Mat Fac Was Fac Sto Used RIF Installer . | . . . . . . . . Robots Hacked . | . . . . . . . . Non-combat . | . . . . . . . . Combat . | . . . . . . . . Robot Hacks Applied . | . . . . . . . . Relay Couplers Released 4 | . . . . 4 . . . Programmers 4 | . . . . 4 . . . Fabnet Peak Effective % . | . . . . . . . . Robots Rewired . | . . . . . . . . Allies Hacked . | . . . . . . . . Hacks Repelled . | . . . . . . . . Allies | -11 -10 -10 -8 -7 -7 -7 -7 -------- Run | Yrd Mat Sub Mat Fac Was Fac Sto Total Allies . | . . . . . . . . Largest Group . | . . . . . . . . Highest-Rated Group . | . . . . . . . . Highest-Rated Ally . | . . . . . . . . Total Orders . | . . . . . . . . Ally Attacks . | . . . . . . . . Total Damage . | . . . . . . . . Kills . | . . . . . . . . Allies Corrupted . | . . . . . . . . Allies Melted . | . . . . . . . . Intel | -11 -10 -10 -8 -7 -7 -7 -7 ------- Run | Yrd Mat Sub Mat Fac Was Fac Sto Robot Analysis Total 2 | . 1 . . 1 . . . Derelict Logs Recovered 1 | . . 1 . . . . . Drone Launches . | . . . . . . . . Drone Recoveries . | . . . . . . . . Exploration | -11 -10 -10 -8 -7 -7 -7 -7 ------------- Run | Yrd Mat Sub Mat Fac Was Fac Sto Turns Passed 9792 | 163 885 1713 1417 2595 118 2493 408 Spaces Moved 4812 | 81 479 841 666 1474 84 1062 125 Core 10 | 5 . . 5 . . . . Treads 4 | . . . 4 . . . . Legs 4796 | 76 479 841 655 1474 84 1062 125 Wheels 2 | . . . 2 . . . . Hover . | . . . . . . . . Flight . | . . . . . . . . Fastest Speed 50 | 50 120 120 110 120 140 140 130 Average Speed 160 | 123 120 189 146 144 140 190 171 Slowest Speed 450 | 190 120 190 450 190 140 360 250 Overloaded Moves . | . . . . . . . . Propulsion Burnouts . | . . . . . . . . Robots Hopped . | . . . . . . . . Cave-ins Triggered . | . . . . . . . . Exploration Rate (%) 47 | 6 71 49 57 52 89 33 26 Regions Visited 7 Branch Regions 2 Pre-discovered Areas 2 | . . 1 . . . 1 . Known Exits Taken 1 | . . . . . . 1 . Unknown Exits Taken 4 | 1 1 1 1 . . . . Scrap Searched 5 | . . 5 . . . . . Spaces Dug 15 | . . . 2 . . 9 4 Terrain Destroyed 98 | . . 2 20 21 . 51 4 Melee 13 | . . . . . . 9 4 Projectile 46 | . . 2 20 21 . 3 . AOE 39 | . . . . . . 39 . Terrain Rammed . | . . . . . . . . Walls Destroyed . | . . . . . . . . Machines Disabled . | . . . . . . . . Actions | -11 -10 -10 -8 -7 -7 -7 -7 --------- Run | Yrd Mat Sub Mat Fac Was Fac Sto Total 6181 | 112 747 903 989 1766 84 1337 243 Wait 712 | 3 215 11 148 150 . 115 70 Move 4806 | 80 478 840 665 1474 83 1061 125 Hop . | . . . . . . . . Pick Up 59 | 6 9 3 9 16 . 15 1 Fast Attach 62 | 7 3 1 22 9 . 19 1 Attach 28 | . 1 . 10 3 1 7 6 Detach 4 | . . . 2 . . . 2 Swap 32 | 1 4 4 9 10 . 4 . Drop 67 | 1 13 6 14 24 . 9 . Fire 296 | 14 24 32 96 77 . 53 . Melee 104 | . . 1 11 . . 54 38 Ram . | . . . . . . . . Kick 6 | . . . 3 3 . . . Crush . | . . . . . . . . Escape Stasis . | . . . . . . . . Rewire . | . . . . . . . . Trap . | . . . . . . . . Miscellaneous 5 | . . 5 . . . . . Route ------- -11/Scrapyard -10/Materials (discovered 6 exits: [*Mat x3] / [*Min x2] / *Sub) -10/Subcaves -8/Materials -7/Factory (discovered 3 exits: [*Fac x2] / *Sto) -7/Waste -7/Factory (discovered 3 exits: *Sto / Low x2) -7/Storage History --------- Turn | Location | Event 2 | -11/Scrapyard | Met Revision 17 27 | -11/Scrapyard | Discovered new exit (range 14) 164 | -11/Scrapyard | Entered Materials 263 | -10/Materials | Discovered new exit (range 12) 317 | -10/Materials | Build established: Mutant 329 | -10/Materials | Discovered new exit (range 11) 329 | -10/Materials | Discovered new exit (range 16) 674 | -10/Materials | Central database locked down 726 | -10/Materials | Discovered new exit (range 5) 761 | -10/Materials | Discovered new exit (range 9) 1029 | -10/Materials | Discovered new exit (range 8) 1049 | -10/Materials | Entered Subcaves 1057 | -10/Subcaves | Learned Materials emergency access door positions 1089 | -10/Subcaves | A Subdweller sparked back to life 1089 | -10/Subcaves | A Subdweller sparked back to life 1293 | -10/Subcaves | Shifting Twisted Machinery released Battle Cannon 1295 | -10/Subcaves | Shifting Twisted Machinery released Sub. Beam Cannon 1321 | -10/Subcaves | A swath of the cavern ceiling suddenly collapsed 1570 | -10/Subcaves | Learned location of Zion (-6) 1570 | -10/Subcaves | Met a Zionite searching for "candidates" 1828 | -10/Subcaves | A swath of the cavern ceiling suddenly collapsed 2023 | -10/Subcaves | Discovered new exit (range 10) 2483 | -10/Subcaves | Visited 4L-MR0's lab 2544 | -10/Subcaves | Found Powered Cannon 2762 | -10/Subcaves | Entered Materials 2762 | -8/Materials | Evolved 4 slots: Propulsion x2, Utility x2 2768 | -8/Materials | Attached Powered Cannon, gained temporary slot: Power 3471 | -8/Materials | Build established: Scavenger-Mutant 3475 | -8/Materials | Lost 3 parts (1p1n1u) 3489 | -8/Materials | Destroyed 8 combat bots 3855 | -8/Materials | Core integrity fell below 50% 3864 | -8/Materials | Lost 11 parts (2p4n2u3w) 3949 | -8/Materials | Found Prototype Device 4081 | -8/Materials | Discovered new exit (range 17) 4108 | -8/Materials | Core integrity fell below 20% 4179 | -8/Materials | Entered Factory 4179 | -7/Factory | Evolved 2 slots: Utility x1, Weapon x1 4749 | -7/Factory | Repaired Hpw. Shotgun 5059 | -7/Factory | Build established: Scavenger-Tank 5363 | -7/Factory | Discovered new exit (range 8) 5883 | -7/Factory | Build established: Tank 6296 | -7/Factory | Garrison activated, responded to threat 6501 | -7/Factory | Discovered new exit (range 19) 6668 | -7/Factory | Discovered new exit (range 8) 6774 | -7/Factory | Sucked down chute 6774 | -7/Factory | Entered Waste 6789 | -7/Waste | EMP discharged 6789 | -7/Waste | System corruption reached 10% 6797 | -7/Waste | Spotted C-40 Crusher 6797 | -7/Waste | Spotted C-40 Crusher 6833 | -7/Waste | Spotted C-40 Crusher 6833 | -7/Waste | Spotted C-40 Crusher 6837 | -7/Waste | Crushed by Compactor (1 part destroyed, 1 dropped) 6842 | -7/Waste | Spotted C-40 Crusher 6843 | -7/Waste | Crushed by Compactor (1 part destroyed) 6861 | -7/Waste | Spotted C-40 Crusher 6865 | -7/Waste | Discovered new exit (range 20) 6883 | -7/Waste | Lost 3 parts (1p2u) 6889 | -7/Waste | EMP discharged 6892 | -7/Waste | Entered Factory 7136 | -7/Factory | Repaired Lgt. Armored Exoskeleton 7208 | -7/Factory | Build established: Gunner 7302 | -7/Factory | Garrison activated, responded to threat 7522 | -7/Factory | Core integrity fell below 50% 7572 | -7/Factory | System corruption reached 30% 7615 | -7/Factory | Lost 6 parts (2p3u1w) 7615 | -7/Factory | Core integrity fell below 20% 8047 | -7/Factory | Build established: Mutant 8372 | -7/Factory | Discovered new exit (range 15) 9187 | -7/Factory | Identified exit to Storage 9187 | -7/Factory | Identified exit to Lower Caves 9385 | -7/Factory | Entered Storage 9592 | -7/Storage | Lost 3 parts (1p1n1u) 9793 | -7/Storage | Destroyed by Y-54 Guardian with Gatling Laser Last Messages --------------- 09736_ R-06 Scavenger collects Unknown Flight Unit. 09740_ System corrupted: Energy discharge (-55). 09740_ K-01 Serf collects debris. 09741_ R-06 Scavenger collects Lgt. Treads. 09742_ R-06 Scavenger collects Carbon-fiber Leg. 09744_ K-01 Serf collects debris. 09744_ R-06 Scavenger collects Lgt. Treads. 09747_ Transfer Shaft disabled. 09748_ R-06 Scavenger collects Wheel. 09757_ System corrupted: Reflective Plating rejected. 09759_ Destroyed Shock Rifle. 09762_ P-60 Hacker destroyed. 09768_ Acquired 10 matter. 09772_ 3UAKWTFSAIFD1XSL